[Event "November 21 Early 2023"]
[Site "https://www.chess.com"]
[Date "2023.11.21"]
[Round "1"]
[White "Nakamura, Hikaru"]
[Black "Graca, Robert"]
[Result "1-0"]
[Board "1"]
[TimeControl "180+1"]
[WhiteFideId "2016192"]
[BlackFideId "644943"]
[WhiteElo "2874"]
[BlackElo "2204"]
[WhiteTeam "USA"]
[BlackTeam "FRA"]
[WhiteClock "0:00:50"]
[BlackClock "0:00:03"]

1. Nf3 {[%clk 0:02:58]}  Nf6 {[%clk 0:02:59]} 2. h4 {[%clk 0:02:54]}  b6 {[%clk 0:02:57]} 3. h5 {[%clk 0:02:48]}  Bb7 {[%clk 0:02:54]} 4. d3 {[%clk 0:02:48]}  h6 {[%clk 0:02:47]} 5. e4 {[%clk 0:02:39]}  e6 {[%clk 0:02:45]} 6. e5 {[%clk 0:02:29]}  Nd5 {[%clk 0:02:35]} 7. g3 {[%clk 0:02:29]}  Nc6 {[%clk 0:02:31]} 8. Bg2 {[%clk 0:02:29]}  d6 {[%clk 0:02:26]} 9. exd6 {[%clk 0:02:26]}  Bxd6 {[%clk 0:02:23]} 10. Nbd2 {[%clk 0:02:25]}  O-O {[%clk 0:02:19]} 11. O-O {[%clk 0:02:19]}  a5 {[%clk 0:02:12]} 12. Nc4 {[%clk 0:02:17]}  Be7 {[%clk 0:02:07]} 13. Re1 {[%clk 0:02:15]}  Bf6 {[%clk 0:02:06]} 14. Nh2 {[%clk 0:02:11]}  b5 {[%clk 0:01:53]} 15. Ne3 {[%clk 0:02:05]}  Nxe3 {[%clk 0:01:45]} 16. Bxe3 {[%clk 0:02:05]}  Bd4 {[%clk 0:01:43]} 17. c3 {[%clk 0:01:50]}  Bxe3 {[%clk 0:01:42]} 18. Rxe3 {[%clk 0:01:50]}  Qg5 {[%clk 0:01:31]} 19. d4 {[%clk 0:01:47]}  Rfd8 {[%clk 0:01:29]} 20. a3 {[%clk 0:01:28]}  b4 {[%clk 0:01:12]} 21. cxb4 {[%clk 0:01:10]}  axb4 {[%clk 0:00:58]} 22. Rc1 {[%clk 0:01:08]}  Rxd4 {[%clk 0:00:54]} 23. Qe1 {[%clk 0:00:56]}  Rd6 {[%clk 0:00:47]} 24. axb4 {[%clk 0:00:56]}  Qxh5 {[%clk 0:00:39]} 25. Rec3 {[%clk 0:00:56]}  Nd8 {[%clk 0:00:31]} 26. Bxb7 {[%clk 0:00:56]}  Nxb7 {[%clk 0:00:32]} 27. Rxc7 {[%clk 0:00:57]}  Qb5 {[%clk 0:00:29]} 28. Qe4 {[%clk 0:00:56]}  Rb8 {[%clk 0:00:18]} 29. Nf3 {[%clk 0:00:55]}  g6 {[%clk 0:00:17]} 30. Qf4 {[%clk 0:00:52]}  Qf5 {[%clk 0:00:06]} 31. Rxb7 {[%clk 0:00:50]}  Qxf4 {[%clk 0:00:03]} 32. Rxb8+ {[%clk 0:00:50]} 1-0

[Event "November 21 Early 2023"]
[Site "https://www.chess.com"]
[Date "2023.11.21"]
[Round "1"]
[White "Mihailidis, Anastasios"]
[Black "Carlsen, Magnus"]
[Result "0-1"]
[Board "2"]
[TimeControl "180+1"]
[WhiteFideId "4205588"]
[BlackFideId "1503014"]
[WhiteElo "2312"]
[BlackElo "2887"]
[WhiteTeam "GRE"]
[BlackTeam "NOR"]
[WhiteClock "0:00:14"]
[BlackClock "0:02:21"]

1. e4 {[%clk 0:02:53]}  a6 {[%clk 0:02:59]} 2. d4 {[%clk 0:02:52]}  h6 {[%clk 0:02:59]} 3. Nf3 {[%clk 0:02:52]}  Nf6 {[%clk 0:02:53]} 4. Bd3 {[%clk 0:02:50]}  c5 {[%clk 0:02:52]} 5. c3 {[%clk 0:02:46]}  cxd4 {[%clk 0:02:50]} 6. cxd4 {[%clk 0:02:46]}  Nc6 {[%clk 0:02:48]} 7. d5 {[%clk 0:02:42]}  Nb4 {[%clk 0:02:48]} 8. a3 {[%clk 0:02:41]}  Nxd3+ {[%clk 0:02:48]} 9. Qxd3 {[%clk 0:02:41]}  d6 {[%clk 0:02:47]} 10. Nc3 {[%clk 0:02:40]}  g6 {[%clk 0:02:46]} 11. h3 {[%clk 0:02:39]}  Bg7 {[%clk 0:02:46]} 12. Be3 {[%clk 0:02:37]}  O-O {[%clk 0:02:47]} 13. O-O {[%clk 0:02:37]}  Bd7 {[%clk 0:02:47]} 14. Rac1 {[%clk 0:02:35]}  Rc8 {[%clk 0:02:47]} 15. Rfd1 {[%clk 0:02:35]}  Re8 {[%clk 0:02:46]} 16. Bd4 {[%clk 0:02:33]}  Qa5 {[%clk 0:02:40]} 17. Ne2 {[%clk 0:02:26]}  Bb5 {[%clk 0:02:37]} 18. Qe3 {[%clk 0:02:25]}  Bxe2 {[%clk 0:02:37]} 19. Qxe2 {[%clk 0:02:25]}  Qb5 {[%clk 0:02:38]} 20. Qxb5 {[%clk 0:02:20]}  axb5 {[%clk 0:02:39]} 21. Nd2 {[%clk 0:01:53]}  Rxc1 {[%clk 0:02:32]} 22. Rxc1 {[%clk 0:01:52]}  Nxe4 {[%clk 0:02:32]} 23. Bxg7 {[%clk 0:01:42]}  Nxd2 {[%clk 0:02:33]} 24. Bxh6 {[%clk 0:01:42]}  Nc4 {[%clk 0:02:33]} 25. b3 {[%clk 0:01:28]}  Nxa3 {[%clk 0:02:33]} 26. Rc7 {[%clk 0:01:28]}  b4 {[%clk 0:02:33]} 27. Rxb7 {[%clk 0:01:24]}  Nb1 {[%clk 0:02:34]} 28. Rxb4 {[%clk 0:01:23]}  Nc3 {[%clk 0:02:34]} 29. Rb7 {[%clk 0:01:04]}  Nxd5 {[%clk 0:02:34]} 30. b4 {[%clk 0:01:04]}  Ra8 {[%clk 0:02:33]} 31. b5 {[%clk 0:01:03]}  Ra1+ {[%clk 0:02:34]} 32. Kh2 {[%clk 0:01:03]}  Rb1 {[%clk 0:02:35]} 33. Bg5 {[%clk 0:00:59]}  f6 {[%clk 0:02:35]} 34. Bh4 {[%clk 0:00:56]}  Kf7 {[%clk 0:02:34]} 35. Bg3 {[%clk 0:00:57]}  Ke6 {[%clk 0:02:33]} 36. Rb8 {[%clk 0:00:52]}  Nc3 {[%clk 0:02:32]} 37. b6 {[%clk 0:00:32]}  g5 {[%clk 0:02:32]} 38. f4 {[%clk 0:00:25]}  gxf4 {[%clk 0:02:31]} 39. Bxf4 {[%clk 0:00:26]}  Nd5 {[%clk 0:02:31]} 40. Bg3 {[%clk 0:00:23]}  Rxb6 {[%clk 0:02:29]} 41. Rxb6 {[%clk 0:00:23]}  Nxb6 {[%clk 0:02:29]} 42. Bf2 {[%clk 0:00:22]}  Nc4 {[%clk 0:02:29]} 43. Kg3 {[%clk 0:00:22]}  Kf5 {[%clk 0:02:29]} 44. Bd4 {[%clk 0:00:20]}  e5 {[%clk 0:02:29]} 45. Bc3 {[%clk 0:00:19]}  d5 {[%clk 0:02:29]} 46. Kf3 {[%clk 0:00:20]}  d4 {[%clk 0:02:27]} 47. g4+ {[%clk 0:00:20]}  Ke6 {[%clk 0:02:26]} 48. Be1 {[%clk 0:00:19]}  Kd5 {[%clk 0:02:26]} 49. h4 {[%clk 0:00:19]}  e4+ {[%clk 0:02:27]} 50. Kf4 {[%clk 0:00:18]}  d3 {[%clk 0:02:21]} 51. h5 {[%clk 0:00:17]}  e3 {[%clk 0:02:21]} 52. h6 {[%clk 0:00:17]}  d2 {[%clk 0:02:22]} 53. Bxd2 {[%clk 0:00:16]}  exd2 {[%clk 0:02:21]} 54. h7 {[%clk 0:00:16]}  Ne5 {[%clk 0:02:20]} 55. h8=Q {[%clk 0:00:17]}  Ng6+ {[%clk 0:02:20]} 56. Kf5 {[%clk 0:00:14]}  Nxh8 {[%clk 0:02:21]} 0-1

[Event "November 21 Early 2023"]
[Site "https://www.chess.com"]
[Date "2023.11.21"]
[Round "1"]
[White "Herman, Matthew"]
[Black "Erigaisi Arjun"]
[Result "0-1"]
[Board "4"]
[TimeControl "180+1"]
[WhiteFideId "2028964"]
[BlackFideId "35009192"]
[WhiteElo "2368"]
[BlackElo "2729"]
[WhiteTeam "USA"]
[BlackTeam "IND"]
[WhiteClock "0:00:00"]
[BlackClock "0:01:33"]

1. e4 {[%clk 0:03:00]}  c6 {[%clk 0:03:00]} 2. d4 {[%clk 0:03:01]}  d5 {[%clk 0:02:57]} 3. e5 {[%clk 0:03:01]}  Bf5 {[%clk 0:02:57]} 4. h4 {[%clk 0:03:02]}  h6 {[%clk 0:02:55]} 5. g4 {[%clk 0:03:00]}  Be4 {[%clk 0:02:56]} 6. f3 {[%clk 0:03:00]}  Bh7 {[%clk 0:02:56]} 7. e6 {[%clk 0:03:01]}  Qd6 {[%clk 0:02:56]} 8. exf7+ {[%clk 0:02:59]}  Kxf7 {[%clk 0:02:57]} 9. f4 {[%clk 0:02:49]}  Be4 {[%clk 0:02:56]} 10. Nf3 {[%clk 0:02:38]}  Nd7 {[%clk 0:02:56]} 11. Bd3 {[%clk 0:02:17]}  Ngf6 {[%clk 0:02:50]} 12. Ne5+ {[%clk 0:02:15]}  Ke8 {[%clk 0:02:47]} 13. Rg1 {[%clk 0:01:41]}  c5 {[%clk 0:02:32]} 14. Ng6 {[%clk 0:01:11]}  Bxg6 {[%clk 0:02:22]} 15. Bxg6+ {[%clk 0:01:11]}  Kd8 {[%clk 0:02:23]} 16. c3 {[%clk 0:01:02]}  Rc8 {[%clk 0:02:17]} 17. Be3 {[%clk 0:00:50]}  cxd4 {[%clk 0:02:11]} 18. Qxd4 {[%clk 0:00:51]}  e5 {[%clk 0:02:07]} 19. Qxa7 {[%clk 0:00:48]}  d4 {[%clk 0:01:56]} 20. cxd4 {[%clk 0:00:38]}  exf4 {[%clk 0:01:56]} 21. Bd2 {[%clk 0:00:37]}  Qe6+ {[%clk 0:01:50]} 22. Kd1 {[%clk 0:00:35]}  Nxg4 {[%clk 0:01:46]} 23. Bxf4 {[%clk 0:00:10]}  Qxg6 {[%clk 0:01:41]} 24. Nd2 {[%clk 0:00:00]}  Bb4 {[%clk 0:01:33]} 0-1

[Event "November 21 Early 2023"]
[Site "https://www.chess.com"]
[Date "2023.11.21"]
[Round "1"]
[White "Kirillov, Dmitry"]
[Black "Andreikin, Dmitry"]
[Result "0-1"]
[Board "6"]
[TimeControl "180+1"]
[WhiteFideId "34180572"]
[BlackFideId "4158814"]
[WhiteElo "2130"]
[BlackElo "2741"]
[WhiteTeam "RUS"]
[BlackTeam "FID"]
[WhiteClock "0:00:36"]
[BlackClock "0:02:06"]

1. d4 {[%clk 0:03:00]}  Nf6 {[%clk 0:02:58]} 2. Nf3 {[%clk 0:02:59]}  e6 {[%clk 0:02:58]} 3. Bg5 {[%clk 0:02:59]}  h6 {[%clk 0:02:57]} 4. Bxf6 {[%clk 0:02:58]}  Qxf6 {[%clk 0:02:57]} 5. e4 {[%clk 0:02:59]}  d6 {[%clk 0:02:57]} 6. Nc3 {[%clk 0:02:59]}  a6 {[%clk 0:02:56]} 7. Bd3 {[%clk 0:02:56]}  Nd7 {[%clk 0:02:54]} 8. Qe2 {[%clk 0:02:52]}  e5 {[%clk 0:02:50]} 9. Nd5 {[%clk 0:02:48]}  Qd8 {[%clk 0:02:50]} 10. dxe5 {[%clk 0:02:48]}  dxe5 {[%clk 0:02:47]} 11. O-O-O {[%clk 0:02:47]}  c6 {[%clk 0:02:47]} 12. Ne3 {[%clk 0:02:44]}  Qc7 {[%clk 0:02:46]} 13. Bc4 {[%clk 0:02:20]}  b5 {[%clk 0:02:43]} 14. Bb3 {[%clk 0:02:07]}  a5 {[%clk 0:02:42]} 15. Nh4 {[%clk 0:01:28]}  Nc5 {[%clk 0:02:34]} 16. c3 {[%clk 0:01:05]}  a4 {[%clk 0:02:31]} 17. Bc2 {[%clk 0:01:04]}  Be6 {[%clk 0:02:31]} 18. Bb1 {[%clk 0:01:04]}  g6 {[%clk 0:02:13]} 19. g3 {[%clk 0:01:03]}  Be7 {[%clk 0:02:13]} 20. Nhg2 {[%clk 0:01:03]}  a3 {[%clk 0:02:06]} 21. b4 {[%clk 0:00:36]}  Na4 {[%clk 0:02:06]} 0-1

[Event "November 21 Early 2023"]
[Site "https://www.chess.com"]
[Date "2023.11.21"]
[Round "1"]
[White "Lazavik, Denis"]
[Black "Ongut, Tamas Gunes"]
[Result "1-0"]
[Board "9"]
[TimeControl "180+1"]
[WhiteFideId "13515110"]
[BlackFideId "770280"]
[WhiteElo "2556"]
[BlackElo "2148"]
[WhiteTeam "BLR"]
[BlackTeam "HUN"]
[WhiteClock "0:00:51"]
[BlackClock "0:00:04"]

1. d4 {[%clk 0:03:00]}  Nf6 {[%clk 0:02:59]} 2. c4 {[%clk 0:03:01]}  g6 {[%clk 0:02:58]} 3. g3 {[%clk 0:03:00]}  Bg7 {[%clk 0:02:58]} 4. Bg2 {[%clk 0:03:01]}  O-O {[%clk 0:02:58]} 5. Nc3 {[%clk 0:03:02]}  d6 {[%clk 0:02:58]} 6. Nf3 {[%clk 0:03:02]}  c5 {[%clk 0:02:57]} 7. dxc5 {[%clk 0:02:50]}  dxc5 {[%clk 0:02:57]} 8. Qxd8 {[%clk 0:02:50]}  Rxd8 {[%clk 0:02:57]} 9. Be3 {[%clk 0:02:50]}  Nc6 {[%clk 0:02:30]} 10. Bxc5 {[%clk 0:02:49]}  b6 {[%clk 0:02:28]} 11. Be3 {[%clk 0:02:42]}  Nb4 {[%clk 0:02:27]} 12. Rc1 {[%clk 0:02:37]}  Bb7 {[%clk 0:01:30]} 13. a3 {[%clk 0:02:35]}  Na6 {[%clk 0:01:28]} 14. O-O {[%clk 0:02:33]}  Nc5 {[%clk 0:01:21]} 15. b4 {[%clk 0:02:23]}  Nce4 {[%clk 0:01:16]} 16. Nb5 {[%clk 0:02:04]}  Ng4 {[%clk 0:01:09]} 17. Bd4 {[%clk 0:02:02]}  e5 {[%clk 0:01:07]} 18. Bb2 {[%clk 0:01:59]}  a6 {[%clk 0:01:03]} 19. Nc3 {[%clk 0:01:39]}  Nd6 {[%clk 0:00:53]} 20. Na4 {[%clk 0:01:36]}  e4 {[%clk 0:00:46]} 21. Bxg7 {[%clk 0:01:25]}  Kxg7 {[%clk 0:00:26]} 22. Nd2 {[%clk 0:01:24]}  b5 {[%clk 0:00:25]} 23. Nc5 {[%clk 0:01:14]}  e3 {[%clk 0:00:19]} 24. Nxb7 {[%clk 0:00:55]}  exd2 {[%clk 0:00:16]} 25. Nxd6 {[%clk 0:00:53]}  dxc1=Q {[%clk 0:00:12]} 26. Rxc1 {[%clk 0:00:54]}  Rxd6 {[%clk 0:00:09]} 27. Bxa8 {[%clk 0:00:53]}  bxc4 {[%clk 0:00:09]} 28. Rxc4 {[%clk 0:00:52]}  Ne5 {[%clk 0:00:09]} 29. Rc5 {[%clk 0:00:51]}  Nd7 {[%clk 0:00:04]} 30. Rd5 {[%clk 0:00:51]} 1-0

[Event "November 21 Early 2023"]
[Site "https://www.chess.com"]
[Date "2023.11.21"]
[Round "1"]
[White "Novik, Maxim"]
[Black "Le, Quang Liem"]
[Result "0-1"]
[Board "10"]
[TimeControl "180+1"]
[WhiteFideId "4102924"]
[BlackFideId "12401137"]
[WhiteElo "2306"]
[BlackElo "2665"]
[WhiteTeam "LTU"]
[BlackTeam "VIE"]
[WhiteClock "0:00:00"]
[BlackClock "0:01:29"]

1. e4 {[%clk 0:00:15]}  c6 {[%clk 0:02:59]} 2. d4 {[%clk 0:00:15]}  d5 {[%clk 0:03:00]} 3. Nc3 {[%clk 0:00:15]}  dxe4 {[%clk 0:02:59]} 4. Nxe4 {[%clk 0:00:15]}  Nf6 {[%clk 0:03:00]} 5. Nxf6+ {[%clk 0:00:15]}  exf6 {[%clk 0:03:01]} 6. c3 {[%clk 0:00:16]}  Bd6 {[%clk 0:03:02]} 7. Bd3 {[%clk 0:00:16]}  O-O {[%clk 0:03:02]} 8. Ne2 {[%clk 0:00:17]}  Re8 {[%clk 0:03:02]} 9. O-O {[%clk 0:00:17]}  Nd7 {[%clk 0:03:00]} 10. Bf4 {[%clk 0:00:18]}  Nf8 {[%clk 0:02:58]} 11. Qd2 {[%clk 0:00:17]}  h5 {[%clk 0:02:40]} 12. Rfe1 {[%clk 0:00:17]}  h4 {[%clk 0:02:39]} 13. Bxd6 {[%clk 0:00:16]}  Qxd6 {[%clk 0:02:40]} 14. Qf4 {[%clk 0:00:15]}  Qxf4 {[%clk 0:02:39]} 15. Nxf4 {[%clk 0:00:16]}  Bd7 {[%clk 0:02:40]} 16. Kf1 {[%clk 0:00:14]}  Ne6 {[%clk 0:02:21]} 17. Nxe6 {[%clk 0:00:14]}  Bxe6 {[%clk 0:02:22]} 18. Re3 {[%clk 0:00:13]}  g6 {[%clk 0:02:14]} 19. Rae1 {[%clk 0:00:12]}  Kg7 {[%clk 0:02:14]} 20. f4 {[%clk 0:00:08]}  Red8 {[%clk 0:02:12]} 21. a3 {[%clk 0:00:07]}  f5 {[%clk 0:01:57]} 22. Kf2 {[%clk 0:00:06]}  Rac8 {[%clk 0:01:57]} 23. Re5 {[%clk 0:00:07]}  c5 {[%clk 0:01:57]} 24. Ke3 {[%clk 0:00:03]}  cxd4+ {[%clk 0:01:46]} 25. cxd4 {[%clk 0:00:04]}  Bd5 {[%clk 0:01:47]} 26. Re2 {[%clk 0:00:03]}  Rc7 {[%clk 0:01:41]} 27. Rc2 {[%clk 0:00:04]}  Rcd7 {[%clk 0:01:32]} 28. Rc5 {[%clk 0:00:03]}  f6 {[%clk 0:01:30]} 29. Bb5 {[%clk 0:00:03]}  fxe5 {[%clk 0:01:29]} 30. Bxd7 {[%clk 0:00:02]}  exf4+ {[%clk 0:01:28]} 31. Kxf4 {[%clk 0:00:02]}  Rxd7 {[%clk 0:01:29]} 32. Ke5 {[%clk 0:00:03]}  Bxg2 {[%clk 0:01:29]} 33. d5 {[%clk 0:00:03]}  Rxd5+ {[%clk 0:01:28]} 34. Rxd5 {[%clk 0:00:04]}  Bxd5 {[%clk 0:01:29]} 35. Kxd5 {[%clk 0:00:00]}  Kf6 {[%clk 0:01:29]} 0-1

[Event "November 21 Early 2023"]
[Site "https://www.chess.com"]
[Date "2023.11.21"]
[Round "1"]
[White "Maghsoodloo, Parham"]
[Black "Erzhanov, Arman"]
[Result "1-0"]
[Board "11"]
[TimeControl "180+1"]
[WhiteFideId "12539929"]
[BlackFideId "4138821"]
[WhiteElo "2660"]
[BlackElo "2171"]
[WhiteTeam "IRI"]
[BlackTeam "KAZ"]
[WhiteClock "0:01:31"]
[BlackClock "0:00:14"]

1. d4 {[%clk 0:03:00]}  d6 {[%clk 0:02:59]} 2. c4 {[%clk 0:03:01]}  e5 {[%clk 0:02:59]} 3. Nf3 {[%clk 0:03:01]}  e4 {[%clk 0:02:58]} 4. Ng1 {[%clk 0:02:58]}  f5 {[%clk 0:02:59]} 5. Nc3 {[%clk 0:02:57]}  Nf6 {[%clk 0:02:58]} 6. h4 {[%clk 0:02:55]}  Be7 {[%clk 0:02:58]} 7. Nh3 {[%clk 0:02:55]}  O-O {[%clk 0:02:59]} 8. Bg5 {[%clk 0:02:52]}  c6 {[%clk 0:02:58]} 9. Nf4 {[%clk 0:02:51]}  Na6 {[%clk 0:02:58]} 10. e3 {[%clk 0:02:51]}  Nc7 {[%clk 0:02:57]} 11. Be2 {[%clk 0:02:49]}  Ne6 {[%clk 0:02:37]} 12. d5 {[%clk 0:02:45]}  Nxf4 {[%clk 0:02:36]} 13. Bxf4 {[%clk 0:02:42]}  c5 {[%clk 0:02:26]} 14. a3 {[%clk 0:02:41]}  Nd7 {[%clk 0:02:23]} 15. h5 {[%clk 0:02:39]}  a6 {[%clk 0:02:22]} 16. b4 {[%clk 0:02:39]}  b6 {[%clk 0:02:02]} 17. Rb1 {[%clk 0:02:36]}  cxb4 {[%clk 0:01:53]} 18. axb4 {[%clk 0:02:36]}  a5 {[%clk 0:01:53]} 19. Nb5 {[%clk 0:02:36]}  Rf6 {[%clk 0:01:42]} 20. bxa5 {[%clk 0:02:24]}  bxa5 {[%clk 0:01:38]} 21. Nd4 {[%clk 0:02:24]}  Ne5 {[%clk 0:01:29]} 22. c5 {[%clk 0:02:14]}  dxc5 {[%clk 0:01:25]} 23. Bxe5 {[%clk 0:02:14]}  cxd4 {[%clk 0:01:25]} 24. Qxd4 {[%clk 0:02:14]}  Bb4+ {[%clk 0:01:22]} 25. Kf1 {[%clk 0:02:03]}  Rf7 {[%clk 0:01:22]} 26. Rh3 {[%clk 0:01:54]}  Ba6 {[%clk 0:01:22]} 27. Bxa6 {[%clk 0:01:53]}  Rxa6 {[%clk 0:01:22]} 28. Rg3 {[%clk 0:01:54]}  Raa7 {[%clk 0:01:20]} 29. Rc1 {[%clk 0:01:54]}  h6 {[%clk 0:01:17]} 30. Rc6 {[%clk 0:01:53]}  Bf8 {[%clk 0:01:15]} 31. Rxh6 {[%clk 0:01:51]}  a4 {[%clk 0:01:15]} 32. Rhg6 {[%clk 0:01:46]}  Qc8 {[%clk 0:01:01]} 33. Kg1 {[%clk 0:01:37]}  a3 {[%clk 0:00:59]} 34. h6 {[%clk 0:01:36]}  a2 {[%clk 0:00:57]} 35. Qd1 {[%clk 0:01:36]}  Qc4 {[%clk 0:00:24]} 36. Kh2 {[%clk 0:01:31]}  Qd3 {[%clk 0:00:24]} 37. Qh5 {[%clk 0:01:31]}  a1=Q {[%clk 0:00:19]} 38. hxg7 {[%clk 0:01:30]}  Bxg7 {[%clk 0:00:15]} 39. Rxg7+ {[%clk 0:01:30]}  Rxg7 {[%clk 0:00:14]} 40. Qe8+ {[%clk 0:01:30]}  Kh7 {[%clk 0:00:14]} 41. Rh3# {[%clk 0:01:31]} 1-0

[Event "November 21 Early 2023"]
[Site "https://www.chess.com"]
[Date "2023.11.21"]
[Round "1"]
[White "Hajiyev, Kanan"]
[Black "Bortnyk, Olexandr"]
[Result "0-1"]
[Board "14"]
[TimeControl "180+1"]
[WhiteFideId "13404148"]
[BlackFideId "14120828"]
[WhiteElo "2102"]
[BlackElo "2725"]
[WhiteTeam "AZE"]
[BlackTeam "UKR"]
[WhiteClock "0:00:03"]
[BlackClock "0:01:22"]

1. d4 {[%clk 0:03:00]}  Nf6 {[%clk 0:02:49]} 2. Nf3 {[%clk 0:02:59]}  b6 {[%clk 0:02:45]} 3. g3 {[%clk 0:02:58]}  Bb7 {[%clk 0:02:46]} 4. Bg2 {[%clk 0:02:59]}  g6 {[%clk 0:02:46]} 5. O-O {[%clk 0:02:59]}  Bg7 {[%clk 0:02:47]} 6. b3 {[%clk 0:03:00]}  O-O {[%clk 0:02:48]} 7. Bb2 {[%clk 0:03:00]}  d5 {[%clk 0:02:48]} 8. c4 {[%clk 0:02:57]}  e6 {[%clk 0:02:49]} 9. Nc3 {[%clk 0:02:54]}  Na6 {[%clk 0:02:45]} 10. Ne5 {[%clk 0:02:49]}  c5 {[%clk 0:02:42]} 11. e3 {[%clk 0:02:38]}  Qe7 {[%clk 0:02:39]} 12. cxd5 {[%clk 0:02:34]}  exd5 {[%clk 0:02:37]} 13. Nb5 {[%clk 0:02:07]}  Rfd8 {[%clk 0:02:29]} 14. Rc1 {[%clk 0:01:56]}  Ne4 {[%clk 0:02:21]} 15. Qe2 {[%clk 0:01:38]}  Nb4 {[%clk 0:01:50]} 16. a3 {[%clk 0:01:37]}  Nc6 {[%clk 0:01:50]} 17. Nxc6 {[%clk 0:01:34]}  Bxc6 {[%clk 0:01:51]} 18. a4 {[%clk 0:00:27]}  Bxb5 {[%clk 0:01:30]} 19. axb5 {[%clk 0:00:21]}  cxd4 {[%clk 0:01:31]} 20. Bxd4 {[%clk 0:00:16]}  Bxd4 {[%clk 0:01:30]} 21. exd4 {[%clk 0:00:16]}  Qb4 {[%clk 0:01:29]} 22. Bxe4 {[%clk 0:00:11]}  dxe4 {[%clk 0:01:30]} 23. Qxe4 {[%clk 0:00:10]}  Qxb5 {[%clk 0:01:30]} 24. Rc7 {[%clk 0:00:07]}  Qxb3 {[%clk 0:01:28]} 25. d5 {[%clk 0:00:08]}  Qxd5 {[%clk 0:01:28]} 26. Qe7 {[%clk 0:00:07]}  a5 {[%clk 0:01:22]} 27. Rb1 {[%clk 0:00:06]}  a4 {[%clk 0:01:21]} 28. Rxb6 {[%clk 0:00:05]}  Re8 {[%clk 0:01:22]} 29. Qd7 {[%clk 0:00:03]}  Re1# {[%clk 0:01:22]} 0-1

[Event "November 21 Early 2023"]
[Site "https://www.chess.com"]
[Date "2023.11.21"]
[Round "1"]
[White "Demchenko, Anton"]
[Black "Pinto, Daniel"]
[Result "1-0"]
[Board "15"]
[TimeControl "180+1"]
[WhiteFideId "4160258"]
[BlackFideId "3303144"]
[WhiteElo "2545"]
[BlackElo "2149"]
[WhiteTeam "SLO"]
[BlackTeam "BOL"]
[WhiteClock "0:00:13"]
[BlackClock "0:00:00"]

1. e4 {[%clk 0:02:56]}  e5 {[%clk 0:02:59]} 2. Nf3 {[%clk 0:02:54]}  Nc6 {[%clk 0:02:57]} 3. Bc4 {[%clk 0:02:54]}  Nf6 {[%clk 0:02:55]} 4. d3 {[%clk 0:02:55]}  Bc5 {[%clk 0:02:52]} 5. Bg5 {[%clk 0:02:54]}  h6 {[%clk 0:02:51]} 6. Bh4 {[%clk 0:02:54]}  Be7 {[%clk 0:02:47]} 7. Bg3 {[%clk 0:02:55]}  d6 {[%clk 0:02:47]} 8. a4 {[%clk 0:02:55]}  a5 {[%clk 0:02:40]} 9. h3 {[%clk 0:02:53]}  Be6 {[%clk 0:02:16]} 10. Bxe6 {[%clk 0:02:52]}  fxe6 {[%clk 0:02:17]} 11. c3 {[%clk 0:02:53]}  O-O {[%clk 0:02:10]} 12. Nbd2 {[%clk 0:02:51]}  Nh5 {[%clk 0:01:49]} 13. O-O {[%clk 0:02:50]}  Nf4 {[%clk 0:01:43]} 14. Bxf4 {[%clk 0:02:47]}  Rxf4 {[%clk 0:01:23]} 15. Qb3 {[%clk 0:02:47]}  Qd7 {[%clk 0:01:24]} 16. g3 {[%clk 0:02:43]}  Rf7 {[%clk 0:01:20]} 17. Nh2 {[%clk 0:02:34]}  Raf8 {[%clk 0:01:16]} 18. Kg2 {[%clk 0:02:33]}  b6 {[%clk 0:01:03]} 19. Qb5 {[%clk 0:02:30]}  Nb8 {[%clk 0:01:00]} 20. Nc4 {[%clk 0:02:20]}  Bf6 {[%clk 0:00:56]} 21. Qxd7 {[%clk 0:02:05]}  Nxd7 {[%clk 0:00:57]} 22. b4 {[%clk 0:02:05]}  d5 {[%clk 0:00:49]} 23. Na3 {[%clk 0:02:05]}  axb4 {[%clk 0:00:20]} 24. cxb4 {[%clk 0:02:05]}  Be7 {[%clk 0:00:20]} 25. Nc2 {[%clk 0:01:47]}  c5 {[%clk 0:00:18]} 26. b5 {[%clk 0:01:40]}  c4 {[%clk 0:00:16]} 27. dxc4 {[%clk 0:01:40]}  Rc8 {[%clk 0:00:15]} 28. exd5 {[%clk 0:01:33]}  exd5 {[%clk 0:00:16]} 29. Ne3 {[%clk 0:01:33]}  dxc4 {[%clk 0:00:14]} 30. Rfc1 {[%clk 0:01:33]}  Bc5 {[%clk 0:00:11]} 31. Ra2 {[%clk 0:01:00]}  Bxe3 {[%clk 0:00:07]} 32. fxe3 {[%clk 0:01:01]}  e4 {[%clk 0:00:07]} 33. Ng4 {[%clk 0:00:56]}  h5 {[%clk 0:00:04]} 34. Nf2 {[%clk 0:00:57]}  Ne5 {[%clk 0:00:05]} 35. Nxe4 {[%clk 0:00:42]}  Rf3 {[%clk 0:00:05]} 36. Nd6 {[%clk 0:00:39]}  Rc5 {[%clk 0:00:04]} 37. a5 {[%clk 0:00:38]}  Rxe3 {[%clk 0:00:03]} 38. axb6 {[%clk 0:00:35]}  Nd7 {[%clk 0:00:02]} 39. b7 {[%clk 0:00:34]}  Rd5 {[%clk 0:00:02]} 40. Nxc4 {[%clk 0:00:32]}  Rb3 {[%clk 0:00:02]} 41. Ra8+ {[%clk 0:00:30]}  Kh7 {[%clk 0:00:02]} 42. b8=Q {[%clk 0:00:29]}  Nxb8 {[%clk 0:00:03]} 43. Rxb8 {[%clk 0:00:30]}  Rdxb5 {[%clk 0:00:02]} 44. Rxb5 {[%clk 0:00:29]}  Rxb5 {[%clk 0:00:03]} 45. Rc2 {[%clk 0:00:29]}  Rc5 {[%clk 0:00:04]} 46. Ne3 {[%clk 0:00:29]}  Ra5 {[%clk 0:00:04]} 47. Kf3 {[%clk 0:00:27]}  Rb5 {[%clk 0:00:04]} 48. Rd2 {[%clk 0:00:27]}  Rb3 {[%clk 0:00:03]} 49. h4 {[%clk 0:00:26]}  Ra3 {[%clk 0:00:02]} 50. Rd4 {[%clk 0:00:24]}  g6 {[%clk 0:00:02]} 51. Kf4 {[%clk 0:00:25]}  Ra5 {[%clk 0:00:02]} 52. Nc4 {[%clk 0:00:21]}  Rb5 {[%clk 0:00:02]} 53. Ne5 {[%clk 0:00:22]}  Rb6 {[%clk 0:00:02]} 54. Nf3 {[%clk 0:00:22]}  Rf6+ {[%clk 0:00:02]} 55. Ke3 {[%clk 0:00:22]}  Re6+ {[%clk 0:00:02]} 56. Re4 {[%clk 0:00:23]}  Rf6 {[%clk 0:00:02]} 57. Re7+ {[%clk 0:00:23]}  Kh6 {[%clk 0:00:03]} 58. Rd7 {[%clk 0:00:19]}  Re6+ {[%clk 0:00:02]} 59. Kf2 {[%clk 0:00:19]}  Rf6 {[%clk 0:00:02]} 60. Kg2 {[%clk 0:00:20]}  Rb6 {[%clk 0:00:03]} 61. Ne5 {[%clk 0:00:19]}  Rb2+ {[%clk 0:00:03]} 62. Kh3 {[%clk 0:00:19]}  Rf2 {[%clk 0:00:03]} 63. Nf7+ {[%clk 0:00:18]}  Kg7 {[%clk 0:00:03]} 64. Ng5+ {[%clk 0:00:18]}  Kg8 {[%clk 0:00:03]} 65. Rd3 {[%clk 0:00:17]}  Kg7 {[%clk 0:00:03]} 66. Rf3 {[%clk 0:00:18]}  Rb2 {[%clk 0:00:03]} 67. Ne6+ {[%clk 0:00:15]}  Kh6 {[%clk 0:00:03]} 68. Rf8 {[%clk 0:00:14]}  Kh7 {[%clk 0:00:02]} 69. Rf7+ {[%clk 0:00:14]}  Kh6 {[%clk 0:00:03]} 70. Rf6 {[%clk 0:00:14]}  Kh7 {[%clk 0:00:02]} 71. Nf4 {[%clk 0:00:14]}  Rf2 {[%clk 0:00:02]} 72. Nxh5 {[%clk 0:00:12]}  Rxf6 {[%clk 0:00:01]} 73. Nxf6+ {[%clk 0:00:12]}  Kg7 {[%clk 0:00:02]} 74. Ne4 {[%clk 0:00:13]}  Kh6 {[%clk 0:00:00]} 75. Kg4 {[%clk 0:00:13]} 1-0